Cogmind - Beta 11.2 @@@ ROGUE MODE // 2023.02.11 @ 22:30:43 // Winter2022/Polymind Player: ArabianSandBoa Result: Self-destructed Performance ------------- Evolutions (1) 500 Regions Visited (2) 400 Robots Destroyed (14) 70 Value Destroyed (403) 403 Prototype IDs (0) 0 Alien Tech Used (0) 0 Bonus (1264) 1264 TOTAL SCORE: 2357 Bonus ------- Polymind Skill 1264 Cogmind --------- Core Integrity 255/400 Matter 0/0 Energy 65/100 System Corruption 0% Temperature Cool (0) Movement Core (50) Location -9/Materials Parts ------- > --- POWER (1) -------- (None) > --- PROPULSION (2) --- (None) > --- UTILITY (3) ------ (None) > --- WEAPON (2) ------- (None) > --- INVENTORY (0) ---- (None) Peak State ------------ > --- POWER ------------ Improved Ion Engine > --- PROPULSION ------- Light Treads Light Treads > --- UTILITY ---------- Heat Sink Heat Sink Light Armor Plating > --- WEAPON ----------- Beam Rifle Heavy Assault Rifle > --- INVENTORY -------- (None) [Rating: 11] Favorites ----------- Power Improved Ion Engine Engine Improved Ion Engine Propulsion Light Treads Treads Light Treads Leg Aluminum Leg Wheel Wheel Utility Heat Sink Device Heat Sink Storage Small Matter Pod Protection Light Armor Plating Weapon Beam Rifle Energy Gun Beam Rifle Ballistic Gun Heavy Assault Rifle Build | -11 -10 -9 ------- Run | Scr Mat Mat Slots Evolved . | . . . Power . | . . . Propulsion . | . . . Utility . | . . . Weapon . | . . . Parts Attached . | . . . Power . | . . . Engine . | . . . Core . | . . . Reactor . | . . . Propulsion . | . . . Treads . | . . . Leg . | . . . Wheel . | . . . Hover . | . . . Flight . | . . . Utility . | . . . Device . | . . . Storage . | . . . Processor . | . . . Hackware . | . . . Protection . | . . . Artifact . | . . . Weapon . | . . . Energy Gun . | . . . Energy Cannon . | . . . Ballistic Gun . | . . . Ballistic Cannon . | . . . Launcher . | . . . Special Weapon . | . . . Impact Weapon . | . . . Slashing Weapon . | . . . Piercing Weapon . | . . . Special Melee Weapon . | . . . Unidentified Prototypes . | . . . Parts Lost 4 | . . 4 Power . | . . . Propulsion 1 | . . 1 Utility 3 | . . 3 Weapon . | . . . Highest Loss Streak 4 | . . 4 To Critical Strikes . | . . . Average Slot Usage (%) 86 | . 100 84 Engine 13 | . 23 12 Treads 18 | . . 20 Leg 2 | . 9 1 Wheel 3 | . 37 . Device 16 | . 4 17 Storage 1 | . 18 . Protection 7 | . . 8 Energy Gun 11 | . 4 12 Ballistic Gun 10 | . . 11 Naked Turns 16 | . 1 15 Heaviest Build 18 | . 7 18 Greatest Support 40 | 3 20 40 Greatest Overweight (x) . | . . . Average Overweight (x) . | . . . Largest Inventory Capacity 1 | . 1 1 Average Capacity . | . . . Most Carried . | . . . Average Carried . | . . . Final Capacity 1 | 1 1 . Final Carried . | . . . Class Distribution -------------------- 86% | Sentry 7% | Worker 5% | Grunt Dominant Class ---------------- Worker | -10/Materials Sentry | -9/Materials Resources | -11 -10 -9 ----------- Run | Scr Mat Mat Matter Collected 73 | . . 73 Remotely . | . . . Salvage Created 421 | . 128 293 Parts 16 | . 3 13 Haulers Intercepted . | . . . Recyclers Shooed . | . . . Parts Field Recycled . | . . . Retrieved Matter . | . . . Parts Self-Destructed . | . . . Prevented . | . . . Kills | -11 -10 -9 ------- Run | Scr Mat Mat Combat Hostiles Destroyed 13 | . 3 10 Guns 11 | . 3 8 AOE 2 | . . 2 Classes Destroyed 3 | . 1 2 Worker 1 | . . 1 Swarmer 4 | . . 4 Grunt 9 | . 3 6 Best Kill Streak 4 | . 2 4 Combat Bots Only 4 | . 2 4 Max Kills in Single Turn 2 | . 1 2 Gunslinging . | . . . Exploded 2 | . . 2 Melee . | . . . Uniques/NPCs Destroyed . | . . . Combat | -11 -10 -9 -------- Run | Scr Mat Mat Damage Taken 973 | . 239 734 Core 229 | . 84 145 Absorbed by Shields . | . . . Core Remaining (%) 83 | 100 66 . Volleys Fired 51 | . 20 31 Largest 2 | . 1 2 Hottest 79 | . 40 79 Shots Fired 82 | . 20 62 Gun 82 | . 20 62 Cannon . | . . . Launcher . | . . . Special . | . . . Kinetic 31 | . . 31 Thermal 51 | . 20 31 Explosive . | . . . Electromagnetic . | . . . Robot Hit Streak 8 | . 8 6 Robot Miss Streak 4 | . 1 4 Penetration Max . | . . . Secondary Targets 3 | . . 3 Max Gunslinging Chain 1 | . . 1 Shots Hit Robots 56 | . 18 38 Core Hits 18 | . 6 12 Critical Kills . | . . . Critical Parts Destroyed . | . . . Critical Strikes 1 | . . 1 Burn 1 | . . 1 Melee Attacks . | . . . Impact . | . . . Slashing . | . . . Piercing . | . . . Sneak Attacks . | . . . Combat Hostiles . | . . . Follow-up Attacks . | . . . Damage Inflicted 1065 | . 207 858 Guns 765 | . 207 558 Cannons . | . . . Explosions 300 | . . 300 Melee . | . . . Ramming . | . . . Kinetic 242 | . . 242 Thermal 823 | . 207 616 Explosive . | . . . Electromagnetic . | . . . Impact . | . . . Slashing . | . . . Piercing . | . . . Highest Corruption 1 | . 1 . Average Corruption 1 | . 1 . Corruption Purged . | . . . Corruption Blocked . | . . . Effects 1 | . 1 . Message Errors 1 | . 1 . Overload Shots . | . . . Overflow Damage 63 | . . 63 Projectiles . | . . . Explosions 63 | . . 63 Melee . | . . . Knockbacks . | . . . Impact . | . . . Kinetic . | . . . Secondary . | . . . Self-Inflicted Damage . | . . . Shots . | . . . Rammed . | . . . Targets Rammed . | . . . Kicked . | . . . Crushed . | . . . Highest Temperature 278 | . 99 278 Average Temperature 93 | . 46 117 Received Heat Transfer 507 | . 159 348 Siege Activations . | . . . Robots Corrupted . | . . . Combat Hostiles . | . . . Parts Fried . | . . . Impact Corruptions . | . . . Robots Melted . | . . . Combat Hostiles . | . . . Parts Melted 3 | . 1 2 Heat Transferred 1501 | . 450 1051 Parts Sabotaged . | . . . Parts Stolen . | . . . Parts Stripped . | . . . Power Chain Reactions . | . . . Missiles Intercepted . | . . . Alert | -11 -10 -9 ------- Run | Scr Mat Mat Peak Influence 211 | . 170 211 Initial 71 | . . 71 Average 47 | . 34 50 Maximum Alert Level 1 | . . 1 Low Security (%) 96 | 100 100 95 Level 1 3 | . . 4 Level 2 . | . . . Level 3 . | . . . Level 4 . | . . . Level 5 . | . . . High Security . | . . . Max Security . | . . . Squads Dispatched 3 | . 1 2 Investigation 3 | . 1 2 Extermination . | . . . Reinforcement . | . . . Assault . | . . . Garrison . | . . . Intercept . | . . . Searches Triggered . | . . . Construction Impeded . | . . . Haulers Reinforced . | . . . Active Scanning Responses . | . . . Cargo Convoy Interrupts . | . . . Stealth | -11 -10 -9 --------- Run | Scr Mat Mat Distress Signals 1 | . 1 . Communications Jammed . | . . . Distress Signals . | . . . Times Spotted 23 | . 11 12 Peak Tracking Total 5 | . 5 4 Tactical Retreats . | . . . Traps | -11 -10 -9 ------- Run | Scr Mat Mat Traps Triggered . | . . . Indirectly . | . . . Trap Hack Attempts . | . . . Triggered . | . . . Disarmed . | . . . Reprogrammed . | . . . Reused . | . . . Traps Extracted . | . . . Installed . | . . . Triggered . | . . . Machines | -11 -10 -9 ---------- Run | Scr Mat Mat Machines Disabled 3 | . . 3 Max in Single Turn 3 | . . 3 Machines Sabotaged . | . . . Garrisons Compromised . | . . . Overloaded Fab Kills . | . . . Hacking | -11 -10 -9 --------- Run | Scr Mat Mat Machines Accessed 4 | . 2 2 Terminals 4 | . 2 2 Fabricators . | . . . Repair Stations . | . . . Recycling Units . | . . . Scanalyzers . | . . . Garrison Access . | . . . Total Hacks 16 | . 8 8 Successful 9 | . 4 5 Failed 7 | . 4 3 Catastrophic 2 | . 2 . Database Lockouts . | . . . Manual 15 | . 6 9 Terminals 16 | . 8 8 Fabricators . | . . . Repair Stations . | . . . Recycling Units . | . . . Scanalyzers . | . . . Garrison Access . | . . . Terminal Hacks 2 | . 2 . Record 1 | . 1 . Zone Layout 1 | . 1 . Fabricator Hacks . | . . . Repair Station Hacks . | . . . Recycling Unit Hacks . | . . . Scanalyzer . | . . . Garrison Access Hacks . | . . . Unauthorized Hacks 7 | . 2 5 Terminals 7 | . 2 5 Botnet 4 | . 2 2 Detonate 2 | . . 2 Disrupt 1 | . . 1 Fabricators . | . . . Repair Stations . | . . . Recycling Units . | . . . Scanalyzers . | . . . Garrison Access . | . . . Data Cores Recovered . | . . . Used . | . . . Hacking Detections 4 | . 2 2 Full Trace Events 4 | . 2 2 Feedback Events 1 | . 1 . Corruption 1 | . 1 . Feedback Blocked . | . . . Robot Schematics Acquired . | . . . Robots Built . | . . . Authchips . | . . . Time . | . . . Total Robot Build Rating . | . . . Part Schematics Acquired . | . . . Parts Built . | . . . Authchips . | . . . Time . | . . . Total Part Build Rating . | . . . Parts Repaired . | . . . Time . | . . . Parts Recycled . | . . . Recycled Matter . | . . . Retrieved Matter . | . . . Retrieved Components . | . . . Parts Scanalyzed . | . . . Part Schematics Acquired . | . . . Parts Damaged . | . . . Bothacking | -11 -10 -9 ------------ Run | Scr Mat Mat Used RIF Installer . | . . . Robots Hacked 2 | . 1 1 Non-combat . | . . . Combat 2 | . 1 1 Robot Hacks Applied 2 | . 1 1 find_shortcuts 2 | . 1 1 Relay Couplers Released . | . . . Fabnet Peak Effective % . | . . . Robots Rewired . | . . . Allies Hacked . | . . . Hacks Repelled . | . . . Allies | -11 -10 -9 -------- Run | Scr Mat Mat Total Allies . | . . . Largest Group . | . . . Highest-Rated Group . | . . . Highest-Rated Ally . | . . . Total Orders . | . . . Ally Attacks . | . . . Total Damage . | . . . Kills . | . . . Allies Corrupted . | . . . Allies Melted . | . . . Intel | -11 -10 -9 ------- Run | Scr Mat Mat Robot Analysis Total 3 | 1 1 1 Derelict Logs Recovered . | . . . Drone Launches . | . . . Drone Recoveries . | . . . Exploration | -11 -10 -9 ------------- Run | Scr Mat Mat Turns Passed 3019 | 102 295 2622 Spaces Moved 583 | 17 289 277 Core 37 | 17 . 20 Treads 197 | . . 197 Legs 87 | . 27 60 Wheels 262 | . 262 . Hover . | . . . Flight . | . . . Fastest Speed 50 | 50 80 50 Average Speed 111 | 50 83 143 Slowest Speed 160 | 50 120 160 Overloaded Moves . | . . . Propulsion Burnouts . | . . . Robots Hopped 1 | . . 1 Cave-ins Triggered . | . . . Exploration Rate (%) 23 | 4 38 28 Regions Visited 2 Branch Regions . Pre-discovered Areas . | . . . Known Exits Taken . | . . . Unknown Exits Taken 2 | 1 1 . Scrap Searched . | . . . Spaces Dug . | . . . Terrain Destroyed 26 | . . 26 Melee . | . . . Projectile . | . . . AOE 26 | . . 26 Terrain Rammed . | . . . Walls Destroyed . | . . . Machines Disabled . | . . . Actions | -11 -10 -9 --------- Run | Scr Mat Mat Total 2870 | 110 322 2438 Wait 2238 | 93 14 2131 Move 580 | 17 288 275 Hop 1 | . . 1 Pick Up . | . . . Fast Attach . | . . . Attach . | . . . Detach . | . . . Swap . | . . . Drop . | . . . Fire 51 | . 20 31 Melee . | . . . Ram . | . . . Kick . | . . . Crush . | . . . Escape Stasis . | . . . Rewire . | . . . Trap . | . . . Miscellaneous . | . . . Route ------- -11/Scrapyard -10/Materials -9/Materials (discovered 1 exit: [*Min]) History --------- Turn | Location | Event 4 | -11/Scrapyard | Discovered new exit (range 13) 103 | -11/Scrapyard | Entered Materials 387 | -10/Materials | Discovered new exit (range 13) 398 | -10/Materials | Entered another Materials area 2283 | -9/Materials | Lost 4 parts (1n3u) 3010 | -9/Materials | Discovered new exit (range 14) 3020 | -9/Materials | Self-destructed Last Messages --------------- >>Trojan(Botnet) Trojan loaded successfully. Testing... Terminal linked with 1 system. Awaiting botnet instructions. >>Trojan(Detonate) Trojan loaded successfully. Testing... Scanning machine control network... Found 1 applicable machine. YIUVPB51RW: Fusion Modulator Infected machine control systems. >>Trojan(Disrupt) Trojan loaded successfully. Testing... Disruption routine running. 02879_ ALERT: Suspicious activity at Terminal M007. Dispatching Investigation squad. 03005_ Released control of Y-45 Defender. 03010_ EXIT=FOUND Map ----- +----------------------------------------------------+ | | | | | | | | | | | | | | | ?????????????????????????????????? | | ?????????????????????????????????? | | ?????????????????????????????????? | | ?????????????????????????????????? | | ?????????????????????????????????? | | ?????????????????????????????????? | | ?????????????????????????????????? | | ?????????????????????????????????? | | ?????????????????????????????????? | | ??????????????##?????????????????? | | ?????????? ""#?????????????????? | | ????????? #????????????????# | | ????????? < #????????????????# | | ????????? #????????????????# | | ????????? #???? ???????????# | | ????????? #????? ???????????# | | ?####+#### #????## ##??????????? | | # # #????# #??????????? | | ?? """"" @ #????# ??????????? | | ?? """"" # #????# #??????????? | | ?? """"" # #????# #??????????? | | ?? """"" # #???## ##??????#### | | ?? """"" # ##### #??????# | | ?? """"" # #??????# | | ?? """"" + +??????# | | # # g #??????# | | ?##########+###### #??????# | | ???????# #?# #???????## | | ???????# """ #?# ########## | | ???????# """ ### | | ???????#! """ / | | ???????# ### | | ???????# """ #?############## | | ???????# """ #??????????????# | | ???????#] """ #??????????????# | | ???????# #??????????????# | | ????????#########??????????????# | | ???????????????????????????????# | | ???????????????????????????????# | | ???????????????????????????????# | | ???????????????????????????????# | | ???????????????????????????????? | | ???????????????????????????????? | +----------------------------------------------------+ Best States ------------- Heat Dissipation 36 Energy Generation 17 Energy Capacity 215 Matter Stores 100 Matter Capacity 100 Sight Range 16 Terrain Scan Density 10 Armor Coverage 150 Resistance: EX 50 Resistance: I 25 Evasion (%) 55 Recoil Reduction 2 Item Schematics ----------------- None Robot Schematics ------------------ None Fabricated ------------ Nothing Alien Tech Used ----------------- None Achievements -------------- None Challenges ------------ None Polymind | -11 -10 -9 ---------- Run | Scr Mat Mat Hosts 3 | 1 1 1 Combat Hostiles 2 | . 1 1 Allies . | . . . Unique Host Classes 3 | 1 1 1 Average Host Suspicion 53 | . 47 53 Unsuspicious Activity 2193 | 2 114 2077 Returns to Shadow 2 | . . 2 Fuzzy Dispatches . | . . . Protomatter Created 57 | . 29 28 Used 43 | 5 15 23 Decayed 43 | . 29 14 Highest Spend 23 | 5 15 23 Top 5 Hosts by Kills: Y-45 Defender (-9/Materials: 10) G-34 Mercenary (-10/Materials: 3) Game ------ Seed BackupConcussiveTendrils Manual? 0 Play Time 00:15:03 Cumulative 302.0 hours Start 2023.02.11 @ 22:18:19 End 2023.02.11 @ 22:30:43 Sessions 1 Manual Loads 0 Difficulty Rogue Special Mode Winter2022/Polymind Game No. 353 Rogue 353 Adventurer 0 Explorer 0 Win Type - Total 0 Types 0/0/0/0/0/0/0/0/0 Lore% 45 Gallery% 72 Achievement% 59 Wizard Run 0 Options --------- ASCII 0 Keyboard 0 Movement Mouse Keybinds 0 Fullscreen 2 Font 24/Smallcaps Map View 76x50 Tactical HUD 1 Map Filters NONE Filters NONE Steam 1 RUN: 4bb262a4-7f39-49ff-af9c-a87232542aea